bitfinex/quotes_BTCUSD_20250421
["timestamp","ask_amount","ask_price","bid_price","bid_amount"]
[1745244256436,0.00409813,87156.0,87155.0,0.24631159]
[1745244256437,0.00209813,87156.0,87155.0,0.24631159]
[1745244256671,0.00409813,87156.0,87155.0,0.75306498]
[1745244256845,0.00309813,87156.0,87155.0,0.75306498]
[1745244257160,0.00209813,87156.0,87155.0,0.75306498]
[1745244257587,0.0008426,87160.0,87158.0,0.22946832]
[1745244257797,0.01146907,87191.0,87161.0,0.01454085]
[1745244258090,0.01231406,87185.0,87161.0,0.13398876]
[1745244258293,0.01147038,87181.0,87161.0,0.13398876]
[1745244258462,0.0008442,87185.0,87161.0,0.13398876]
[1745244258827,0.0008442,87185.0,87161.0,0.1362827]
[1745244259386,0.01147038,87181.0,87161.0,0.13398876]
[1745244259585,0.0008442,87185.0,87161.0,0.13398876]
[1745244259813,0.01147025,87182.0,87161.0,0.13398876]
[1745244260021,0.01231406,87185.0,87161.0,0.13398876]
[1745244260420,0.0008442,87185.0,87161.0,0.13398876]
[1745244260636,0.005151,87181.0,87161.0,0.13498876]
[1745244260968,0.005151,87181.0,87161.0,0.13598876]
[1745244261889,0.005151,87181.0,87161.0,0.88778876]
[1745244262111,0.005151,87181.0,87161.0,0.88578876]
[1745244262315,0.005151,87181.0,87161.0,0.88678876]
[1745244262534,0.005151,87181.0,87161.0,0.88778876]
[1745244262740,0.005151,87181.0,87161.0,0.88878876]
[1745244262920,0.005151,87181.0,87161.0,0.88778876]
[1745244263544,0.005151,87181.0,87163.0,0.01454085]
[1745244263746,0.005151,87181.0,87163.0,0.47398876]
[1745244264689,0.005151,87181.0,87167.0,0.58398547]
[1745244264690,1e-08,87168.0,87167.0,0.58398547]
[1745244264895,1e-08,87168.0,87167.0,0.70343338]
[1745244265069,1e-08,87168.0,87167.0,0.71392805]
[1745244265447,1e-08,87168.0,87167.0,1.12572805]
[1745244265654,1e-08,87168.0,87167.0,1.11523338]
[1745244266677,1e-08,87168.0,87167.0,1.12573237]
[1745244266882,4.001e-05,87168.0,87167.0,1.12573237]
[1745244267259,8.001e-05,87168.0,87167.0,1.12573237]
[1745244267476,1e-08,87169.0,87168.0,0.35454085]
[1745244267683,0.005151,87181.0,87176.0,0.56942094]
[1745244267684,1e-08,87177.0,87176.0,0.56942094]
[1745244267897,1e-08,87177.0,87176.0,1.12570869]
[1745244268928,1e-08,87177.0,87176.0,1.00626078]
[1745244269122,1e-08,87177.0,87176.0,0.99576179]
[1745244269503,1e-08,87177.0,87176.0,0.99676179]
[1745244269835,1e-08,87177.0,87176.0,0.99576179]
[1745244270422,0.00100001,87177.0,87176.0,0.99576179]
[1745244272049,0.00100001,87177.0,87176.0,0.98122094]
[1745244272245,0.00100001,87177.0,87176.0,0.99576179]
[1745244272471,0.00100001,87177.0,87172.0,0.24090252]
[1745244272587,0.00200001,87177.0,87174.0,0.24089751]
[1745244272799,0.00200001,87177.0,87170.0,0.24090654]
[1745244272800,0.01147104,87176.0,87170.0,0.24090654]
[1745244273012,0.01147236,87166.0,87160.0,0.01147315]
[1745244273227,0.0456,87159.0,87157.0,0.01147354]
[1745244273666,0.0456,87159.0,87157.0,0.24094224]
[1745244274211,0.0456,87174.0,87160.0,0.01147315]
[1745244274416,0.0456,87174.0,87093.0,0.05718557]
[1745244274417,0.0456,87174.0,87172.0,0.22943146]
[1745244274623,4e-05,87178.0,87176.0,0.22942094]
[1745244275062,4e-05,87178.0,87174.0,0.01147131]
[1745244275063,4e-05,87178.0,87174.0,0.24089535]
[1745244275247,4e-05,87178.0,87176.0,0.58396179]
[1745244275654,4e-05,87178.0,87176.0,0.59452905]
[1745244276004,4e-05,87178.0,87176.0,0.2399882]
[1745244276610,4e-05,87178.0,87174.0,0.24089535]
[1745244276611,0.00300001,87177.0,87174.0,0.24089535]
[1745244276811,0.00300001,87177.0,87172.0,0.00013553]
[1745244276812,0.01147117,87175.0,87172.0,0.00013553]
[1745244277040,0.22942816,87174.0,87172.0,0.00013553]
[1745244277241,0.11944791,87173.0,87172.0,0.00013553]
[1745244277646,0.16884791,87173.0,87172.0,0.00013553]
[1745244277800,0.28016791,87173.0,87172.0,0.00013553]
[1745244278915,0.28216791,87173.0,87172.0,0.00013553]
[1745244279485,0.28016791,87173.0,87172.0,0.00013553]
[1745244279665,0.51159674,87173.0,87172.0,0.00013553]
[1745244280086,0.28416791,87173.0,87172.0,0.00013553]
[1745244280286,0.23276791,87173.0,87172.0,0.00013553]
[1745244280692,0.23576791,87173.0,87172.0,0.00013553]
[1745244280935,0.23376791,87173.0,87172.0,0.00013553]
[1745244281288,0.23576791,87173.0,87172.0,0.00013553]
[1745244281940,0.11632,87173.0,87172.0,0.00013553]
[1745244283371,0.11332,87173.0,87172.0,0.00013553]
[1745244283577,0.11532,87173.0,87172.0,0.00013553]
[1745244283986,0.11332,87173.0,87172.0,0.00013553]
[1745244284192,0.11132,87173.0,87172.0,0.00013553]
[1745244284405,0.11332,87173.0,87172.0,0.00013553]
[1745244284520,0.11532,87173.0,87172.0,0.00013553]
[1745244284726,0.11132,87173.0,87172.0,0.00013553]
[1745244285175,0.11532,87173.0,87172.0,0.00013553]
[1745244285377,0.11332,87173.0,87172.0,0.00013553]
[1745244285592,0.23276791,87173.0,87172.0,0.00013553]
[1745244285801,0.23476791,87173.0,87172.0,0.00013553]
[1745244286411,0.11532,87173.0,87172.0,0.00013553]
[1745244287210,0.004,87173.0,87172.0,0.01467638]
[1745244287841,0.004,87173.0,87172.0,0.02528129]
[1745244288684,0.004,87173.0,87172.0,0.01467638]
[1745244288858,0.004,87173.0,87172.0,0.35697035]
[1745244289089,0.004,87173.0,87172.0,0.47412429]
[1745244289862,0.004,87173.0,87172.0,0.4847271]
[1745244290081,0.002,87173.0,87172.0,0.4847271]
[1745244290528,1e-08,87177.0,87176.0,0.58396179]
[1745244291092,1e-08,87177.0,87176.0,0.5945646]
[1745244293594,1e-08,87177.0,87176.0,0.02614366]
[1745244294129,1e-08,87177.0,87176.0,0.2555646]
[1745244295245,1e-08,87177.0,87176.0,0.2545646]
[1745244295978,1e-08,87177.0,87176.0,0.02514366]
[1745244296186,1e-08,87177.0,87176.0,0.01060281]
[1745244296561,0.22842883,87173.0,87172.0,0.00013553]
[1745244296780,0.22941831,87177.0,87172.0,0.00013553]
[1745244297311,0.24188922,87177.0,87173.0,0.01147144]
[1745244297621,0.23141831,87177.0,87173.0,0.01147144]
[1745244297774,0.23041831,87177.0,87173.0,0.01147144]
[1745244297973,0.23141831,87177.0,87173.0,0.01147144]
[1745244298406,0.24188922,87177.0,87173.0,0.01147144]
[1745244298606,0.01247092,87177.0,87173.0,0.01147144]
[1745244298778,0.01347092,87177.0,87173.0,0.01147144]
[1745244299304,0.00200001,87177.0,87174.0,0.01147131]
[1745244299709,0.00300001,87177.0,87174.0,0.01147131]
[1745244300067,0.00300001,87177.0,87174.0,0.24089502]
[1745244300269,1e-08,87177.0,87175.0,0.22942132]
[1745244300513,0.00100001,87177.0,87175.0,0.22942132]
[1745244300714,0.00300001,87177.0,87176.0,0.3568348]
[1745244300891,0.00300001,87177.0,87176.0,0.35454085]
[1745244301306,0.00200001,87177.0,87176.0,0.35454085]
[1745244301503,0.00100001,87177.0,87176.0,0.35060327]
[1745244301705,0.00200001,87177.0,87176.0,0.35060327]
[1745244301904,0.00200001,87177.0,87176.0,0.34]
[1745244302169,0.00200001,87177.0,87176.0,0.35454085]
[1745244302852,0.00100001,87177.0,87176.0,0.35454085]
[1745244303683,1e-08,87177.0,87176.0,0.35454085]
[1745244303892,0.00100001,87177.0,87176.0,0.35454085]
[1745244304102,1e-08,87177.0,87176.0,0.35454085]
[1745244304521,0.00200001,87177.0,87176.0,0.35454085]
[1745244304724,0.00100001,87177.0,87176.0,0.36514755]
[1745244305922,1e-08,87177.0,87176.0,0.36514755]
[1745244306091,1e-08,87177.0,87176.0,0.35454085]
[1745244307352,0.00100001,87177.0,87176.0,0.35454085]
[1745244309336,0.00100001,87177.0,87172.0,0.00013553]
[1745244309535,0.00100001,87177.0,87172.0,0.3516071]
[1745244309880,0.01247092,87177.0,87173.0,0.01147144]
[1745244310093,0.00100001,87177.0,87175.0,0.2294214]
[1745244310281,0.01070804,87176.0,87175.0,0.24396225]
[1745244310687,0.01070804,87176.0,87175.0,0.2294214]
[1745244311554,0.01270804,87176.0,87174.0,0.01147131]
[1745244311695,0.01270804,87176.0,87175.0,0.22942357]
[1745244311883,0.01270804,87176.0,87174.0,0.01147131]
[1745244312092,0.01270804,87176.0,87172.0,0.00013553]
[1745244312093,0.2294262,87174.0,87172.0,0.00013553]
[1745244312293,0.0465,87173.0,87172.0,0.00013553]
[1745244312679,0.05720804,87173.0,87172.0,0.00013553]
[1745244313977,0.05920804,87173.0,87172.0,0.00013553]
[1745244314184,0.06120804,87173.0,87172.0,0.00013553]
[1745244314533,0.18065595,87173.0,87172.0,0.00013553]
[1745244314736,0.18165595,87173.0,87172.0,0.00013553]
[1745244319807,0.33165595,87173.0,87172.0,0.00013553]
[1745244320928,0.32965595,87173.0,87172.0,0.00013553]
[1745244321124,0.33165595,87173.0,87172.0,0.00013553]
[1745244321284,0.33169595,87173.0,87172.0,0.00013553]
[1745244321829,0.32973595,87173.0,87172.0,0.00013553]
[1745244322251,0.33177595,87173.0,87172.0,0.00013553]
[1745244322376,0.33181595,87173.0,87172.0,0.00013553]
[1745244323951,0.43901595,87173.0,87172.0,0.00013553]
[1745244324951,0.43701595,87173.0,87172.0,0.00013553]
[1745244325127,0.85321595,87173.0,87172.0,0.00013553]
[1745244325332,0.89721595,87173.0,87172.0,0.00013553]
[1745244325947,0.89521595,87173.0,87172.0,0.00013553]
[1745244326349,0.89821595,87173.0,87172.0,0.00113553]
[1745244327401,0.93030737,87173.0,87172.0,0.00113553]
[1745244328230,1.38975528,87173.0,87172.0,0.00113553]
[1745244328420,1.27030737,87173.0,87172.0,0.00113553]
[1745244330331,1.27024737,87173.0,87172.0,0.00113553]
[1745244331804,1.27953156,87173.0,87172.0,0.00113553]
[1745244333039,1.24744014,87173.0,87172.0,0.00113553]
[1745244333531,1.14024014,87173.0,87172.0,0.00113553]
[1745244333957,1.24744014,87173.0,87172.0,0.00113553]
[1745244334566,1.24744014,87173.0,87172.0,1e-08]
[1745244334968,1.27949415,87173.0,87172.0,1e-08]
[1745244337005,0.22951045,87142.0,87141.0,0.0004218]
[1745244337204,0.47695795,87142.0,87141.0,0.0004218]
[1745244338185,0.47795795,87142.0,87141.0,0.0004218]
[1745244338337,0.46724991,87142.0,87141.0,0.0004218]
[1745244338535,0.23773946,87142.0,87141.0,0.0004218]
[1745244339080,0.23873946,87142.0,87141.0,0.0014218]
[1745244339241,0.2494475,87142.0,87141.0,0.0014218]
[1745244342832,0.02275959,87142.0,87141.0,0.0014218]
[1745244342977,0.02275959,87142.0,87141.0,0.45535744]
[1745244343192,0.01284339,87142.0,87141.0,0.45306265]
[1745244343386,0.01284339,87142.0,87141.0,0.40646265]
[1745244343763,0.00013535,87142.0,87141.0,0.40546265]
[1745244344182,0.00113535,87142.0,87141.0,0.40646265]
[1745244347252,1e-08,87142.0,87141.0,0.57251056]
[1745244347420,0.01070804,87161.0,87141.0,0.57251056]
[1745244347421,0.01070804,87161.0,87160.0,0.0466]
[1745244347583,0.01070804,87161.0,87160.0,0.06114085]
[1745244348235,0.01070804,87172.0,87169.0,0.01147196]
[1745244348438,0.00846521,87171.0,87170.0,0.22943673]
[1745244348639,0.01070804,87172.0,87170.0,0.22943673]
[1745244349052,0.01070804,87171.0,87170.0,0.22943673]
[1745244349925,0.00029543,87173.0,87172.0,0.22943146]
[1745244350911,0.00029543,87173.0,87172.0,0.24397231]
[1745244351807,0.00129543,87173.0,87172.0,0.24397231]
[1745244352130,0.00229543,87173.0,87172.0,0.24397231]
[1745244352332,0.00129543,87173.0,87172.0,0.24397231]
[1745244352662,0.00029543,87173.0,87172.0,0.24397231]
[1745244352867,0.00129543,87173.0,87172.0,0.25567648]
[1745244353232,1e-08,87177.0,87176.0,0.22942094]
[1745244353439,1e-08,87177.0,87176.0,1.04735544]
[1745244353631,1e-08,87177.0,87176.0,1.1645097]
[1745244355535,1e-08,87177.0,87176.0,1.1665097]
[1745244355739,0.00100001,87177.0,87176.0,1.1695097]
[1745244356144,0.00100001,87177.0,87176.0,1.2183097]
[1745244356352,0.005151,87181.0,87177.0,0.35454085]
[1745244356353,1e-08,87178.0,87177.0,0.35454085]
[1745244356531,1e-08,87178.0,87177.0,0.47398876]
[1745244357158,0.0008446,87191.0,87190.0,0.2293841]
[1745244357376,0.0008446,87191.0,87190.0,0.70566619]
[1745244357591,0.0008446,87191.0,87190.0,0.75267286]
[1745244357787,0.0008446,87191.0,87190.0,1.21327286]
[1745244358298,0.0231054,87200.0,87199.0,0.58390127]
[1745244358497,0.0232408,87200.0,87199.0,0.70334918]
[1745244359650,0.0232408,87200.0,87199.0,0.70534918]
[1745244361873,0.0232408,87200.0,87199.0,0.58590127]
[1745244363117,0.0232408,87200.0,87199.0,0.70534918]
[1745244363737,0.0232408,87200.0,87199.0,0.58590127]
[1745244364377,0.0232408,87200.0,87199.0,0.57136042]
[1745244364797,0.0232408,87200.0,87199.0,0.002]
[1745244365493,0.03110779,87200.0,87199.0,0.002]
[1745244365894,0.03110779,87200.0,87197.0,0.24083169]
[1745244366323,0.03110779,87200.0,87197.0,0.24083291]
[1745244366899,0.03110779,87200.0,87192.0,0.01146894]
[1745244366900,0.01146802,87199.0,87192.0,0.01146894]
[1745244367139,0.01146907,87191.0,87186.0,0.24086435]
[1745244367349,0.01146907,87191.0,87186.0,0.01146973]
[1745244367552,0.23716101,87190.0,87185.0,0.22939725]
[1745244367755,0.01146933,87189.0,87184.0,0.01146999]
[1745244367999,0.00777471,87190.0,87187.0,0.24086158]
[1745244368205,0.10716,87193.0,87190.0,0.0114692]
[1745244368442,0.10716,87193.0,87191.0,0.22938147]
[1745244368662,0.0242408,87200.0,87197.0,0.22936568]
[1745244368843,0.0242408,87200.0,87199.0,0.22936042]
[1745244369285,0.0242408,87200.0,87199.0,0.24390127]
[1745244370127,0.0242408,87200.0,87195.0,0.01146854]
[1745244370128,0.03570868,87200.0,87195.0,0.01146854]
[1745244370333,0.03570868,87200.0,87197.0,0.01146828]
[1745244370534,0.03570868,87200.0,87194.0,0.01146867]
[1745244370535,0.01146815,87198.0,87194.0,0.01146867]
[1745244370664,0.01146802,87199.0,87195.0,0.22937095]
[1745244370869,0.24082941,87199.0,87194.0,0.01146867]
[1745244371066,0.01146815,87198.0,87195.0,0.01146854]
[1745244371475,0.01146802,87199.0,87196.0,0.01146841]
[1745244371679,0.01246815,87198.0,87195.0,0.01146854]
[1745244372001,0.01146854,87195.0,87188.0,0.01146946]
[1745244372172,0.01146867,87194.0,87190.0,0.24085126]
[1745244372374,0.11944791,87195.0,87193.0,0.22937406]
[1745244373767,0.11944791,87195.0,87186.0,0.01146973]
[1745244373768,0.0114692,87190.0,87186.0,0.01146973]
[1745244373972,0.36029003,87195.0,87191.0,0.01146907]
[1745244374181,0.01063912,87196.0,87194.0,0.22937358]
[1745244374380,0.001,87195.0,87194.0,0.22937358]
[1745244374803,0.01063912,87196.0,87194.0,0.22937358]
[1745244375092,0.01063912,87195.0,87194.0,0.22937358]
[1745244375304,0.01163912,87195.0,87192.0,0.01146894]
[1745244375449,0.01363912,87195.0,87191.0,0.01146907]
[1745244375651,0.01363912,87195.0,87192.0,0.22937884]
[1745244375850,0.01146867,87194.0,87190.0,0.24085145]
[1745244376078,0.01147065,87179.0,87176.0,0.01147104]
[1745244376302,0.22941123,87180.0,87164.0,0.000844]
[1745244376303,0.22943935,87170.0,87165.0,0.01147249]
[1745244376514,0.24091685,87167.0,87164.0,0.000844]
[1745244376727,0.22944982,87166.0,87164.0,0.000844]
[1745244376940,0.24091685,87167.0,87164.0,0.000844]
[1745244377286,0.23807974,87170.0,87165.0,0.01147249]
[1745244377472,0.10716,87170.0,87167.0,0.24091602]
[1745244377667,0.10716,87170.0,87169.0,0.22943936]
[1745244378235,0.11784978,87170.0,87169.0,0.22943936]
[1745244379827,0.11884978,87170.0,87169.0,0.22943936]
[1745244381423,0.11984978,87170.0,87169.0,0.22943936]
[1745244382176,0.11984978,87170.0,87167.0,0.22944379]
[1745244382385,0.11984978,87170.0,87169.0,0.22943936]
[1745244382788,0.01147223,87167.0,87164.0,0.000844]
[1745244382992,0.27864989,87165.0,87164.0,0.00097943]
[1745244383313,0.3980978,87165.0,87164.0,0.00097943]
[1745244383543,0.40878758,87165.0,87164.0,0.00097943]
[1745244384509,0.40978758,87165.0,87164.0,0.00097943]
[1745244384745,0.55978758,87165.0,87164.0,0.00097943]
[1745244384974,0.55878758,87165.0,87164.0,0.00097943]
[1745244385237,0.56952765,87165.0,87164.0,0.00097943]
[1745244386069,0.56036485,87165.0,87164.0,0.00097943]
[1745244386269,0.56136485,87165.0,87164.0,0.00097943]
[1745244389392,0.56686678,87165.0,87164.0,0.00097943]
[1745244390749,0.56486678,87165.0,87164.0,0.00097943]
[1745244390984,0.56586678,87165.0,87164.0,0.00097943]
[1745244391186,0.56686678,87165.0,87164.0,0.00097943]
[1745244391406,0.56886678,87165.0,87164.0,0.00097943]
[1745244392551,1.34506678,87165.0,87164.0,0.00097943]
[1745244393109,1.34206678,87165.0,87164.0,0.00097943]
[1745244393545,1.34206678,87165.0,87141.0,0.0004218]
[1745244393546,0.37951045,87142.0,87141.0,0.0004218]
[1745244393766,0.65830768,87142.0,87141.0,0.0004218]
[1745244394667,0.65930768,87142.0,87141.0,0.0004218]
[1745244395447,0.51999746,87142.0,87141.0,0.0004218]
[1745244395654,0.24368701,87142.0,87141.0,0.0004218]
[1745244395868,0.47319746,87142.0,87141.0,0.0004218]
[1745244396075,0.48074645,87142.0,87141.0,0.0004218]
[1745244396513,0.47105667,87142.0,87141.0,0.0004218]
[1745244396717,0.47105667,87142.0,87141.0,0.0014218]
[1745244397120,0.23299723,87142.0,87141.0,0.0014218]
[1745244397345,0.00638932,87142.0,87141.0,0.0004218]
[1745244397770,0.001,87142.0,87141.0,0.0004218]
[1745244397975,0.12044791,87142.0,87141.0,0.0004218]
[1745244398183,0.1257361,87142.0,87141.0,0.0004218]
[1745244398395,0.2757361,87142.0,87141.0,0.0004218]
[1745244398601,0.2757361,87142.0,87141.0,0.0014218]
[1745244398859,0.00628819,87142.0,87141.0,0.23093488]
[1745244399050,0.00528819,87142.0,87141.0,0.23093488]
[1745244399466,0.16147512,87145.0,87141.0,0.24241053]
[1745244399671,0.00522031,87142.0,87141.0,0.24141053]
[1745244399875,0.01147525,87144.0,87141.0,0.24141053]
[1745244400112,0.00522031,87142.0,87141.0,0.24141053]
[1745244400329,0.15,87145.0,87142.0,0.01147552]
[1745244400531,0.16147512,87145.0,87142.0,0.01147552]
[1745244400886,0.15,87145.0,87142.0,0.24098397]
[1745244401123,0.10716,87149.0,87147.0,0.22949542]
[1745244401318,0.10716,87149.0,87146.0,0.01147499]
[1745244401882,0.10716,87149.0,87146.0,0.24097272]
[1745244402279,0.01068978,87150.0,87147.0,0.01147486]
[1745244402518,0.01068978,87150.0,87149.0,0.24403286]
[1745244402709,0.01068978,87161.0,87160.0,0.22946305]
[1745244403360,0.11944791,87161.0,87157.0,0.2409428]
[1745244403685,0.11944791,87160.0,87158.0,0.22946634]
[1745244403890,0.11844791,87160.0,87158.0,0.24093975]
[1745244404740,0.01752694,87159.0,87158.0,0.24093975]
[1745244405152,0.01752694,87159.0,87158.0,0.25230412]
[1745244405396,0.01752694,87159.0,87158.0,0.26684497]
[1745244405601,0.00968978,87159.0,87158.0,0.26684497]
[1745244406227,0.00968978,87159.0,87158.0,0.26784497]
[1745244406455,0.00968978,87159.0,87158.0,0.26884497]
[1745244406661,0.10720511,87165.0,87164.0,0.22945252]
[1745244406892,4.511e-05,87165.0,87164.0,0.24399337]
[1745244409461,0.00104511,87165.0,87164.0,0.24399337]
[1745244411787,0.00104511,87165.0,87164.0,0.29309337]
[1745244412016,0.00104511,87165.0,87164.0,0.75254128]
[1745244412226,0.03499548,87200.0,87192.0,0.01146894]
[1745244412227,0.01146802,87199.0,87192.0,0.01146894]
[1745244412434,0.01146802,87199.0,87195.0,0.01146854]
[1745244412642,7.251e-05,87198.0,87194.0,0.01146867]
[1745244412852,7.251e-05,87198.0,87195.0,0.24083949]
[1745244413073,7.251e-05,87198.0,87197.0,0.22936568]
[1745244413890,7.251e-05,87198.0,87197.0,0.24390653]
[1745244414266,7.251e-05,87198.0,87193.0,0.01146881]
[1745244414267,0.00407251,87198.0,87193.0,0.01146881]
[1745244414472,0.00407251,87198.0,87188.0,0.0491]
[1745244414473,0.01147065,87179.0,87174.0,0.01147131]
[1745244414628,0.22942052,87177.0,87171.0,0.0114717]
[1745244414832,0.01147104,87176.0,87173.0,0.01147144]
[1745244415027,0.11944791,87178.0,87175.0,0.01147117]
[1745244415245,0.10708,87185.0,87176.0,0.2294201]
[1745244415452,0.11944791,87184.0,87176.0,0.01147104]
[1745244415714,0.01147052,87180.0,87177.0,0.01147091]
[1745244415979,0.11944791,87180.0,87177.0,0.01147091]
[1745244416199,0.11944791,87180.0,87178.0,0.22941567]
[1745244416689,0.11944791,87180.0,87177.0,0.24088705]
[1745244416822,0.11944791,87180.0,87179.0,0.22941304]
[1745244416994,0.01147078,87178.0,87173.0,0.01147144]
[1745244417199,0.01147209,87168.0,87165.0,0.01147249]
[1745244417426,0.01147183,87170.0,87165.0,0.01147249]
[1745244417629,0.24090303,87172.0,87168.0,0.01147209]
[1745244417851,0.0114717,87171.0,87165.0,0.01147249]
[1745244418002,0.24091102,87170.0,87165.0,0.24092011]
[1745244418417,0.01147183,87170.0,87166.0,0.01147236]
[1745244418614,0.01147288,87162.0,87159.0,0.01147328]
[1745244418824,0.22947622,87155.0,87154.0,4.511e-05]
[1745244419000,0.11944791,87155.0,87154.0,4.511e-05]
[1745244419420,0.10708,87161.0,87158.0,0.01147341]
[1745244419620,0.10708,87161.0,87154.0,4.511e-05]
[1745244419621,0.01147354,87157.0,87154.0,4.511e-05]
[1745244419821,0.11944791,87157.0,87154.0,0.01151905]
[1745244420341,0.36039268,87157.0,87154.0,0.01151905]
[1745244420542,0.22947622,87155.0,87154.0,4.511e-05]
[1745244420921,0.34892413,87155.0,87154.0,4.511e-05]
[1745244421128,0.13011897,87155.0,87154.0,4.511e-05]
[1745244421849,0.16924791,87155.0,87154.0,4.511e-05]
[1745244422211,0.16924791,87155.0,87154.0,0.00204511]
[1745244422632,0.16924791,87155.0,87154.0,4.511e-05]
[1745244423022,0.18191897,87155.0,87154.0,0.00204511]
[1745244423403,0.18191897,87155.0,87154.0,4.511e-05]
[1745244424832,0.18169897,87155.0,87154.0,4.511e-05]
[1745244425208,0.13189897,87155.0,87154.0,4.511e-05]
[1745244425427,0.002,87155.0,87154.0,4.511e-05]
[1745244426056,0.002,87155.0,87154.0,0.22952396]
[1745244427021,0.001,87155.0,87154.0,0.22952396]
[1745244428728,0.001,87155.0,87149.0,0.24096435]
[1745244428935,0.11944791,87154.0,87152.0,0.0114742]
[1745244429157,0.11944791,87154.0,87146.0,0.24197239]
[1745244429158,0.13092185,87154.0,87147.0,0.01147486]
[1745244429369,0.13092185,87154.0,87151.0,0.01147433]
[1745244429370,0.11944791,87154.0,87151.0,0.01147433]
[1745244429567,0.00109317,87155.0,87153.0,0.22948148]
[1745244432027,0.24096341,87151.0,87144.0,0.22950462]
[1745244432231,0.0114746,87149.0,87139.0,0.01147591]
[1745244432430,0.01147446,87150.0,87145.0,0.01147512]
[1745244432631,0.10708,87154.0,87151.0,0.01147433]
[1745244432767,0.13092198,87153.0,87148.0,0.01147473]
[1745244432971,0.13092198,87153.0,87144.0,0.22950439]
[1745244432972,0.0114742,87152.0,87144.0,0.22950439]
[1745244433168,0.2294917,87150.0,87146.0,0.002]
[1745244433379,0.001,87149.0,87147.0,0.22949728]
[1745244433579,0.11944791,87151.0,87148.0,0.24096744]
[1745244435035,0.11944791,87151.0,87148.0,0.24196744]
[1745244435237,0.0114746,87149.0,87146.0,0.001]
[1745244435448,0.0114746,87149.0,87146.0,0.01247499]
[1745244435645,0.0114746,87149.0,87148.0,0.001]
[1745244435817,0.13092224,87151.0,87148.0,0.001]
[1745244436231,0.36041113,87151.0,87148.0,0.001]
[1745244436596,0.0114746,87149.0,87146.0,0.001]
[1745244436840,0.11944791,87148.0,87146.0,0.01247499]
[1745244437007,0.11944791,87148.0,87146.0,0.01347499]
[1745244437232,0.11944791,87148.0,87146.0,0.24297327]
[1745244437514,0.11775106,87154.0,87152.0,0.22948198]
[1745244437720,0.23719897,87154.0,87152.0,0.22948198]
[1745244437925,0.11775106,87154.0,87152.0,0.22948198]
[1745244438535,0.10708,87154.0,87152.0,0.22948198]
[1745244438972,0.00109317,87155.0,87154.0,0.22947885]
[1745244440945,0.00109317,87155.0,87154.0,0.2440197]
[1745244441142,0.00109317,87155.0,87154.0,0.2450197]
[1745244441572,0.01067106,87167.0,87166.0,0.58398811]
[1745244441573,0.00967106,87167.0,87166.0,0.58398811]
[1745244441773,0.00971618,87167.0,87166.0,0.58398811]
[1745244442185,4.512e-05,87167.0,87166.0,0.58398811]
[1745244443088,4.512e-05,87167.0,87166.0,0.56944726]
[1745244443288,4.512e-05,87167.0,87166.0,0.57144726]
[1745244443458,4.512e-05,87167.0,87166.0,0.58598811]
[1745244444089,1e-08,87167.0,87166.0,0.80103602]
[1745244444282,4.001e-05,87167.0,87166.0,0.80103602]
[1745244444929,4.001e-05,87167.0,87166.0,0.80003602]
[1745244445079,8.001e-05,87167.0,87166.0,0.67958811]
[1745244445273,1e-08,87167.0,87166.0,0.80303602]
[1745244445530,1e-08,87167.0,87166.0,0.80103602]
[1745244446089,1e-08,87167.0,87166.0,0.80303602]
[1745244450891,1e-08,87167.0,87166.0,0.80403602]
[1745244455362,1e-08,87167.0,87166.0,0.75603602]
[1745244455568,1e-08,87167.0,87166.0,0.63658811]
[1745244457355,1e-08,87167.0,87166.0,0.75603602]
[1745244457714,0.0235276,87200.0,87197.0,0.01146828]
[1745244457941,0.02357274,87200.0,87199.0,0.24390127]
[1745244458931,0.02857274,87200.0,87199.0,0.24390127]
[1745244459134,0.02557274,87200.0,87199.0,0.24390127]
[1745244459328,0.02357274,87200.0,87199.0,0.24390127]
[1745244459527,0.02557274,87200.0,87199.0,0.24390127]
[1745244459768,0.02757274,87200.0,87199.0,0.24390127]
[1745244460500,0.24084424,87194.0,87188.0,0.01146946]
[1745244460614,0.0489,87193.0,87190.0,0.0114692]
[1745244460844,0.0489,87193.0,87191.0,0.22938038]
[1745244461053,0.08894062,87200.0,87197.0,0.01146828]
[1745244461251,0.08894062,87200.0,87196.0,0.01146841]
[1745244461451,0.13091593,87199.0,87195.0,0.22936882]
[1745244461720,0.13091593,87199.0,87195.0,0.24083736]
[1745244461870,0.01146828,87197.0,87194.0,0.24084062]
[1745244462096,0.01146973,87186.0,87182.0,0.01147025]
[1745244462298,0.01147144,87173.0,87169.0,0.01147196]
[1745244462650,0.01146959,87187.0,87180.0,0.01147052]
[1745244462860,0.01146999,87184.0,87179.0,0.01147065]
[1745244463070,0.01146959,87187.0,87182.0,0.24087539]
[1745244463270,0.0489,87191.0,87189.0,0.2293846]
[1745244463500,0.0489,87198.0,87192.0,0.25538863]
[1745244463709,0.4162,87204.0,87199.0,0.22936042]
[1745244463911,0.0245276,87200.0,87199.0,0.22936042]
[1745244464088,0.02459493,87200.0,87199.0,0.22936042]
[1745244464521,0.01146802,87199.0,87195.0,0.22937095]
[1745244464743,0.01146841,87196.0,87193.0,0.01146881]
[1745244464947,0.01146815,87198.0,87193.0,0.01146881]
[1745244465148,0.01146815,87198.0,87194.0,0.2408397]
[1745244465284,0.01146802,87199.0,87196.0,0.01146841]
[1745244465666,0.01246802,87199.0,87196.0,0.01146841]
[1745244466110,0.13091606,87198.0,87194.0,0.01146867]
[1745244466434,0.001,87196.0,87191.0,0.01146907]
[1745244466591,0.22937015,87196.0,87191.0,0.24084878]
[1745244466987,0.01146894,87192.0,87187.0,0.24085995]
[1745244467214,0.24085415,87190.0,87184.0,0.22939894]
[1745244467418,0.01147052,87180.0,87175.0,0.01147117]
[1745244467620,0.01147012,87183.0,87179.0,0.01147065]
[1745244467835,0.01147065,87179.0,87175.0,0.01147117]
[1745244468035,0.01147091,87177.0,87170.0,0.22943529]
[1745244468237,0.01147183,87170.0,87164.0,0.22945093]
[1745244468454,0.0114717,87171.0,87167.0,0.01147223]
[1745244468633,0.01066893,87170.0,87168.0,0.01147209]
[1745244468899,0.01066893,87170.0,87169.0,0.22943936]
[1745244469075,0.01066893,87170.0,87168.0,0.24091193]
[1745244469653,0.01066893,87169.0,87168.0,0.24091193]
[1745244470039,0.06037209,87168.0,87160.0,0.01147315]
[1745244470242,0.01147367,87156.0,87150.0,0.01147446]
[1745244470479,0.24096108,87151.0,87145.0,0.01147512]
[1745244470681,0.24096108,87151.0,87145.0,0.24097657]
[1745244470898,0.0114746,87149.0,87142.0,4.512e-05]
[1745244471185,0.22950518,87144.0,87142.0,4.512e-05]
[1745244471396,0.16764791,87143.0,87142.0,4.512e-05]
[1745244471805,0.17731684,87143.0,87142.0,4.512e-05]
[1745244472223,0.17631684,87143.0,87142.0,4.512e-05]
[1745244473312,0.17731684,87143.0,87142.0,4.512e-05]
[1745244473532,0.17631684,87143.0,87142.0,4.512e-05]
[1745244473937,0.17731684,87143.0,87142.0,4.512e-05]
[1745244474111,0.17931684,87143.0,87142.0,4.512e-05]